fUSD/lending_fUSD_20250215
["ID","MTS","AMOUNT","RATE_DAILY","PERIOD"]
[353195734,1739640665530,-1985.97,0.00012683,2]
[353195735,1739640665539,-500.0,0.00012684,2]
[353195736,1739640665548,-738.52,0.00012684,2]
[353195737,1739640665558,-292.10396779,0.00012684,2]
[353195738,1739640665567,-500.0,0.00012684,2]
[353195739,1739640665577,-500.0,0.00012684,2]
[353195740,1739640665586,-571.48,0.00012696,2]
[353195741,1739640665595,-512.53,0.00012696,2]
[353195742,1739640665604,-500.0,0.00012696,2]
[353195743,1739640665614,-844.08,0.00012696,2]
[353195744,1739640665623,-678.77,0.00012696,2]
[353195745,1739640665632,-578.69,0.00012696,2]
[353195746,1739640665642,-836.8,0.00012696,2]
[353195747,1739640665652,-502.58,0.00012696,2]
[353195748,1739640665662,-500.0,0.00012696,2]
[353195749,1739640665672,-830.02,0.00012696,2]
[353195750,1739640665682,-932.26,0.00012696,2]
[353195751,1739640665691,-651.91,0.00012696,2]
[353195752,1739640665700,-521.69,0.00012696,2]
[353195753,1739640665710,-2314.63,0.00012696,2]
[353195754,1739640665721,-500.0,0.00012696,2]
[353195755,1739640665731,-1694.07,0.00012696,2]
[353195756,1739640665743,-805.43,0.00012696,2]
[353195757,1739640665754,-1220.11,0.0001271,2]
[353195758,1739640665763,-150.0,0.0001274,2]
[353195759,1739640665773,-150.0,0.0001274,2]
[353195760,1739640665782,-150.0,0.0001274,2]
[353195761,1739640665791,-5004.91016,0.0001275,2]
[353195762,1739640665800,-280.88723074,0.0001276,2]
[353195763,1739640665810,-216.0,0.0001276,2]
[353195764,1739640665819,-661.5,0.00012765,2]
[353195765,1739640665829,-522.73,0.00012765,2]
[353195766,1739640665840,-1073.26,0.00012765,2]
[353195767,1739640665854,-702.58,0.00012765,2]
[353195768,1739640665865,-500.0,0.00012765,2]
[353195769,1739640665875,-749.99,0.00012765,2]
[353195770,1739640665886,-180.896505,0.00012765,2]
[353195771,1739640665896,-500.0,0.00012765,2]
[353195772,1739640665906,-557.75,0.00012765,2]
[353195773,1739640665918,-826.89,0.00012765,2]
[353195774,1739640665928,-364.085208,0.00012765,2]
[353195775,1739640665938,-551.39,0.00012765,2]
[353195776,1739640665986,-758.76,0.00012765,2]
[353195777,1739640665997,-574.22,0.00012765,2]
[353195778,1739640666007,-664.12,0.00012765,2]
[353195779,1739640666016,-647.76,0.00012765,2]
[353195780,1739640666026,-500.0,0.00012765,2]
[353195781,1739640666036,-679.9,0.00012765,2]
[353195782,1739640666046,-500.0,0.00012765,2]
[353195783,1739640666055,-1774.1,0.00012765,2]
[353195784,1739640666064,-221.94,0.00012765,2]
[353195785,1739640666073,-567.85,0.00012765,2]
[353195786,1739640666083,-536.13,0.00012765,2]
[353195787,1739640666092,-523.37401204,0.00012765,2]
[353195788,1739640666100,-810.11,0.00012765,2]
[353195789,1739640666110,-1032.21,0.00012765,2]
[353195790,1739640666119,-1501.05,0.00012765,2]
[353195791,1739640666129,-644.12,0.00012765,2]
[353195792,1739640666139,-701.46,0.00012765,2]
[353195793,1739640666151,-917.15,0.00012765,2]
[353195794,1739640666160,-506.75,0.00012765,2]
[353195795,1739640666170,-845.55,0.00012765,2]
[353195796,1739640666179,-893.05,0.00012765,2]
[353195797,1739640666189,-625.32,0.00012765,2]
[353195798,1739640666198,-1077.49,0.00012765,2]
[353195799,1739640666208,-500.0,0.00012765,2]
[353195800,1739640666218,-833.02,0.00012765,2]
[353195801,1739640666227,-629.24,0.00012765,2]
[353195802,1739640666237,-1985.97,0.00012765,2]
[353195803,1739640666247,-175.32,0.00012766,2]
[353195804,1739640666258,-738.52,0.00012766,2]
[353195805,1739640666267,-401.2,0.00012766,2]
[353195806,1739640666276,-296.15,0.00012767,2]
[353195807,1739640666285,-5011.93124085,0.00012771,2]
[353195808,1739640666294,-571.48,0.00012779,2]
[353195809,1739640666304,-512.53,0.00012779,2]
[353195810,1739640666313,-500.0,0.00012779,2]
[353195811,1739640666322,-844.08,0.00012779,2]
[353195812,1739640666331,-678.77,0.00012779,2]
[353195813,1739640666340,-578.69,0.00012779,2]
[353195814,1739640666349,-836.8,0.00012779,2]
[353195815,1739640666358,-502.58,0.00012779,2]
[353195816,1739640666368,-436.44,0.00012779,2]
[353195817,1739640666377,-830.02,0.00012779,2]
[353195818,1739640666385,-932.26,0.00012779,2]
[353195819,1739640666395,-651.91,0.00012779,2]
[353195820,1739640666404,-521.69,0.00012779,2]
[353195821,1739640666414,-2314.63,0.00012779,2]
[353195822,1739640666422,-500.0,0.00012779,2]
[353195823,1739640666432,-1694.07,0.00012779,2]
[353195824,1739640666441,-805.43,0.00012779,2]
[353195825,1739640666450,-12900.68960896,0.0001278,2]
[353195826,1739640666459,-461.18,0.00012824,2]
[353195827,1739640666468,-661.5,0.00012847,2]
[353195828,1739640666477,-522.73,0.00012847,2]
[353195829,1739640666487,-1073.26,0.00012847,2]
[353195830,1739640666498,-702.58,0.00012847,2]
[353195831,1739640666507,-395.64,0.00012847,2]
[353195832,1739640666516,-749.99,0.00012847,2]
[353195833,1739640666525,-180.896505,0.00012847,2]
[353195834,1739640666534,-500.0,0.00012847,2]
[353195835,1739640666543,-557.75,0.00012847,2]
[353195836,1739640666552,-826.89,0.00012847,2]
[353195837,1739640666562,-364.085208,0.00012847,2]
[353195838,1739640666571,-551.39,0.00012847,2]
[353195839,1739640666580,-758.76,0.00012847,2]
[353195840,1739640666589,-574.22,0.00012847,2]
[353195841,1739640666599,-664.12,0.00012847,2]
[353195842,1739640666611,-647.76,0.00012847,2]
[353195843,1739640666620,-500.0,0.00012847,2]
[353195844,1739640666629,-679.9,0.00012847,2]
[353195845,1739640666639,-500.0,0.00012847,2]
[353195846,1739640666648,-1774.1,0.00012847,2]
[353195847,1739640666657,-567.85,0.00012847,2]
[353195848,1739640666666,-536.13,0.00012847,2]
[353195849,1739640666675,-810.11,0.00012847,2]
[353195850,1739640666684,-1032.21,0.00012847,2]
[353195851,1739640666694,-1501.05,0.00012847,2]
[353195852,1739640666703,-644.12,0.00012847,2]
[353195853,1739640666712,-151.0,0.00012847,2]
[353195854,1739640666722,-151.0,0.00012847,2]
[353195855,1739640666732,-701.46,0.00012847,2]
[353195856,1739640666743,-917.15,0.00012847,2]
[353195857,1739640666752,-572.149505,0.00012847,2]
[353195858,1739640666762,-506.75,0.00012847,2]
[353195859,1739640666771,-572.149505,0.00012847,2]
[353195860,1739640666781,-845.55,0.00012847,2]
[353195861,1739640666790,-893.05,0.00012847,2]
[353195862,1739640666799,-625.32,0.00012847,2]
[353195863,1739640666808,-1077.49,0.00012847,2]
[353195864,1739640666817,-496.61,0.00012847,2]
[353195865,1739640666827,-833.02,0.00012847,2]
[353195866,1739640666836,-629.24,0.00012847,2]
[353195867,1739640666845,-1985.97,0.00012847,2]
[353195868,1739640666854,-738.52,0.00012848,2]
[353195869,1739640666864,-571.48,0.00012861,2]
[353195870,1739640666873,-512.53,0.00012861,2]
[353195871,1739640666883,-500.0,0.00012861,2]
[353195872,1739640666892,-844.08,0.00012861,2]
[353195873,1739640666901,-678.77,0.00012861,2]
[353195874,1739640666911,-578.69,0.00012861,2]
[353195875,1739640666920,-836.8,0.00012861,2]
[353195876,1739640666929,-502.58,0.00012861,2]
[353195877,1739640666939,-830.02,0.00012861,2]
[353195878,1739640666949,-932.26,0.00012861,2]
[353195879,1739640666960,-651.91,0.00012861,2]
[353195880,1739640666970,-521.69,0.00012861,2]
[353195881,1739640666980,-2314.63,0.00012861,2]
[353195882,1739640666989,-500.0,0.00012861,2]
[353195883,1739640667000,-1694.07,0.00012861,2]
[353195884,1739640667010,-805.43,0.00012861,2]
[353195885,1739640667019,-10133.62755885,0.00012918,2]
[353195886,1739640667029,-661.5,0.00012929,2]
[353195887,1739640667038,-522.73,0.00012929,2]
[353195888,1739640667048,-151.0,0.00012929,2]
[353195889,1739640667057,-1073.26,0.00012929,2]
[353195890,1739640667067,-702.58,0.00012929,2]
[353195891,1739640667076,-749.99,0.00012929,2]
[353195892,1739640667085,-635.17,0.00012929,2]
[353195893,1739640667094,-557.75,0.00012929,2]
[353195894,1739640667103,-826.89,0.00012929,2]
[353195895,1739640667113,-551.39,0.00012929,2]
[353195896,1739640667122,-758.76,0.00012929,2]
[353195897,1739640667131,-574.22,0.00012929,2]
[353195898,1739640667143,-664.12,0.00012929,2]
[353195899,1739640667155,-647.76,0.00012929,2]
[353195900,1739640667169,-500.0,0.00012929,2]
[353195901,1739640667179,-679.9,0.00012929,2]
[353195902,1739640667189,-500.0,0.00012929,2]
[353195903,1739640667199,-1774.1,0.00012929,2]
[353195904,1739640667208,-567.85,0.00012929,2]
[353195905,1739640667218,-536.13,0.00012929,2]
[353195906,1739640667228,-810.11,0.00012929,2]
[353195907,1739640667239,-1032.21,0.00012929,2]
[353195908,1739640667250,-1501.05,0.00012929,2]
[353195909,1739640667260,-644.12,0.00012929,2]
[353195910,1739640667269,-701.46,0.00012929,2]
[353195911,1739640667278,-917.15,0.00012929,2]
[353195912,1739640667288,-506.75,0.00012929,2]
[353195913,1739640667298,-845.55,0.00012929,2]
[353195914,1739640667307,-893.05,0.00012929,2]
[353195915,1739640667318,-625.32,0.00012929,2]
[353195916,1739640667328,-1077.49,0.00012929,2]
[353195917,1739640667338,-833.02,0.00012929,2]
[353195918,1739640667347,-629.24,0.00012929,2]
[353195919,1739640667357,-1985.97,0.00012929,2]
[353195920,1739640667366,-151.0,0.0001293,2]
[353195921,1739640667375,-214.187081,0.0001293,2]
[353195922,1739640667385,-214.187081,0.0001293,2]
[353195923,1739640667395,-257.353394,0.0001293,2]
[353195924,1739640667404,-257.353394,0.0001293,2]
[353195925,1739640667414,-151.0,0.0001293,2]
[353195926,1739640667423,-151.0,0.0001293,2]
[353195927,1739640667433,-738.52,0.0001293,2]
[353195928,1739640667443,-571.66,0.00012943,2]
[353195929,1739640667452,-512.75454602,0.00012943,2]
[353195930,1739640667462,-358.30032008,0.00012943,2]
[353195931,1739640667472,-844.14743512,0.00012943,2]
[353195932,1739640667482,-678.90553598,0.00012943,2]
[353195933,1739640667493,-578.83,0.00012943,2]
[353195934,1739640667503,-836.91047989,0.00012943,2]
[353195935,1739640667512,-502.65,0.00012943,2]
[353195936,1739640667521,-830.06443007,0.00012943,2]
[353195937,1739640667531,-932.43235651,0.00012943,2]
[353195938,1739640667541,-652.04,0.00012943,2]
[353195939,1739640667550,-521.82964858,0.00012943,2]
[353195940,1739640667560,-2314.85169451,0.00012943,2]
[353195941,1739640667570,-392.39169566,0.00012943,2]
[353195942,1739640667580,-1694.28281582,0.00012943,2]
[353195943,1739640667590,-805.60366977,0.00012943,2]
[353195944,1739640667599,-3069.78032547,0.0001295,2]
[353195945,1739640667609,-280.88723074,0.00012964,2]
[353195946,1739640667619,-204.0,0.0001297,2]
[353195947,1739640667628,-474.68,0.00012971,2]
[353195948,1739640667637,-700.0,0.00013,2]
[353195949,1739640667647,-500.0,0.00013,3]
[353195950,1739640667657,-216.0,0.00013,2]
[353195951,1739640667666,-550.0,0.00013,2]
[353195952,1739640667676,-151.0,0.00013,2]
[353195953,1739640667686,-151.0,0.00013,2]
[353195954,1739640667695,-151.0,0.00013,2]
[353195955,1739640667704,-661.71,0.00013012,2]
[353195956,1739640667713,-522.87,0.00013012,2]
[353195957,1739640667723,-1073.29,0.00013012,2]
[353195958,1739640667733,-702.70482047,0.00013012,2]
[353195959,1739640667745,-750.14,0.00013012,2]
[353195960,1739640667755,-557.83831883,0.00013012,2]
[353195961,1739640667764,-826.91868934,0.00013012,2]
[353195962,1739640667775,-551.4,0.00013012,2]
[353195963,1739640667785,-758.97904764,0.00013012,2]
[353195964,1739640667795,-574.44445867,0.00013012,2]
[353195965,1739640667806,-664.31231913,0.00013012,2]
[353195966,1739640667816,-647.84,0.00013012,2]
[353195967,1739640667826,-219.68145095,0.00013012,2]
[353195968,1739640667836,-680.04166073,0.00013012,2]
[353195969,1739640667846,-423.85240422,0.00013012,2]
[353195970,1739640667856,-1774.33653065,0.00013012,2]
[353195971,1739640667865,-568.0546823,0.00013012,2]
[353195972,1739640667876,-536.24,0.00013012,2]
[353195973,1739640667886,-810.29916183,0.00013012,2]
[353195974,1739640667896,-1032.43,0.00013012,2]
[353195975,1739640667907,-1501.07,0.00013012,2]
[353195976,1739640667918,-644.24,0.00013012,2]
[353195977,1739640667928,-701.52888332,0.00013012,2]
[353195978,1739640667939,-917.22,0.00013012,2]
[353195979,1739640667949,-506.95,0.00013012,2]
[353195980,1739640667959,-845.75,0.00013012,2]
[353195981,1739640667974,-893.23309765,0.00013012,2]
[353195982,1739640667984,-625.37,0.00013012,2]
[353195983,1739640667995,-1077.56416271,0.00013012,2]
[353195984,1739640668005,-833.03,0.00013012,2]
[353195985,1739640668015,-629.35869692,0.00013012,2]
[353195986,1739640668025,-1986.14380023,0.00013012,2]
[353195987,1739640668035,-151.0,0.00013013,2]
[353195988,1739640668044,-151.0,0.00013013,2]
[353195989,1739640668055,-151.0,0.00013013,2]
[353195990,1739640668064,-151.0,0.00013013,2]
[353195991,1739640668074,-738.67576073,0.00013013,2]
[353195992,1739640668084,-1000.0,0.00013134,2]
[353195993,1739640668095,-157.98,0.00013164,2]
[353195994,1739640668104,-280.88723074,0.00013168,2]
[353195995,1739640668114,-151.0,0.00013177,2]
[353195996,1739640668123,-151.0,0.00013177,2]
[353195997,1739640668134,-151.0,0.00013177,2]
[353195998,1739640668150,-151.0,0.00013177,2]
[353195999,1739640668159,-9071.31949329,0.00013181,2]
[353196000,1739640668168,-204.0,0.0001322,2]
[353196001,1739640668177,-216.0,0.0001323,2]
[353196002,1739640668189,-269.46424909,0.0001334,2]
[353196003,1739640668200,-10133.62755885,0.00013349,2]
[353196004,1739640668210,-3069.78032547,0.00013365,2]
[353196005,1739640668221,-280.88723074,0.00013372,2]
[353196006,1739640668231,-530.52293704,0.00013424,2]
[353196007,1739640668241,-204.0,0.0001346,2]
[353196008,1739640668251,-670.3481224,0.00013462,2]
[353196009,1739640668261,-216.0,0.0001347,2]
[353196010,1739640668271,-2000.0,0.00013499,2]
[353196011,1739640668281,-5004.91016,0.000135,2]
[353196012,1739640668292,-1000.0,0.000135,2]
[353196013,1739640668302,-151.0,0.00013506,2]
[353196014,1739640668312,-248.474641,0.00013506,2]
[353196015,1739640668322,-248.474641,0.00013506,2]
[353196016,1739640668331,-151.0,0.00013506,2]
[353196017,1739640668341,-151.0,0.00013506,2]
[353196018,1739640668351,-315.12296644,0.00013566,2]
[353196019,1739640668361,-280.88723074,0.00013576,2]
[353196020,1739640668371,-94116.92,0.000136,2]
[353196021,1739640668380,-378.39332628,0.00013698,2]
[353196022,1739640668390,-745.2,0.00013698,2]
[353196023,1739640668399,-745.2,0.00013698,2]
[353196024,1739640668410,-745.2,0.00013698,2]
[353196025,1739640668419,-745.2,0.00013698,2]
[353196026,1739640668429,-745.2,0.00013698,2]
[353196027,1739640668439,-745.2,0.00013698,2]
[353196028,1739640668449,-745.2,0.00013698,2]
[353196029,1739640668459,-745.2,0.00013698,2]
[353196030,1739640668469,-745.2,0.00013698,2]
[353196031,1739640668479,-745.2,0.00013698,2]
[353196032,1739640668489,-745.2,0.00013698,2]
[353196033,1739640668501,-745.2,0.00013698,2]
[353196034,1739640668511,-745.2,0.00013698,2]
[353196035,1739640668521,-745.2,0.00013698,2]
[353196036,1739640668531,-745.2,0.00013698,2]
[353196037,1739640668541,-745.2,0.00013698,2]
[353196038,1739640668551,-745.2,0.00013698,2]
[353196039,1739640668560,-745.2,0.00013698,2]
[353196040,1739640668570,-745.2,0.00013698,2]
[353196041,1739640668580,-745.2,0.00013698,2]
[353196042,1739640668590,-745.2,0.00013698,2]
[353196043,1739640668599,-745.2,0.00013698,2]
[353196044,1739640668608,-745.2,0.00013698,2]
[353196045,1739640668618,-745.24344504,0.00013698,2]
[353196046,1739640668629,-204.4037,0.00013698,2]
[353196047,1739640668639,-204.4037,0.00013698,2]
[353196048,1739640668649,-500.0,0.00013699,2]
[353196049,1739640668659,-500.0,0.00013699,2]
[353196050,1739640668668,-500.0,0.00013699,2]
[353196051,1739640668678,-500.0,0.00013699,2]
[353196052,1739640668688,-500.0,0.00013699,2]
[353196053,1739640668698,-500.0,0.00013699,2]
[353196054,1739640668708,-2098.4,0.00013699,2]
[353196055,1739640668718,-1901.6,0.00013699,2]
[353196056,1739640668728,-200.0,0.00013699,2]
[353196057,1739640668738,-500.0,0.00013699,2]
[353196058,1739640668749,-165.28,0.00013699,2]
[353196059,1739640668759,-151.0,0.00013699,2]
[353196060,1739640668769,-6861.15,0.00013699,2]
[353196061,1739640668778,-151.0,0.00013699,2]
[353196062,1739640668789,-151.0,0.00013699,2]
[353196063,1739640668799,-204.0,0.000137,2]
[353196064,1739640668808,-207.0,0.000137,2]
[353196065,1739640668817,-1400.0,0.000137,2]
[353196066,1739640668827,-1300.0,0.000137,2]
[353196067,1739640668836,-500.0,0.000137,2]
[353196068,1739640668846,-216.0,0.0001371,2]
[353196069,1739640668856,-213.20176746,0.0001378,2]
[353196070,1739640668866,-10133.62755885,0.0001378,2]
[353196071,1739640668876,-280.88723074,0.0001378,2]
[353196072,1739640668886,-363.7190223,0.0001378,2]
[353196073,1739640668896,-3069.78032547,0.0001378,2]
[353196074,1739640668906,-164.93539072,0.0001378,2]
[353196075,1739640668917,-224.82133018,0.0001378,2]
[353196076,1739640668927,-677.436189,0.0001383,2]
[353196077,1739640668937,-677.436189,0.0001383,2]
[353196078,1739640668947,-1051.4460006,0.0001387,2]
[353196079,1739640668956,-752.620436,0.0001387,2]
[353196080,1739640668966,-453.7948714,0.0001387,2]
[353196081,1739640668976,-267.6622248,0.0001387,2]
[353196082,1739640668985,-344.1371461,0.0001387,2]
[353196083,1739640668996,-420.6120675,0.0001387,2]
[353196084,1739640669006,-500.0,0.00013873,2]
[353196085,1739640669016,-532.20479939,0.00013873,2]
[353196086,1739640669025,-521.39973015,0.00013873,2]
[353196087,1739640669035,-500.0,0.00013873,2]
[353196088,1739640669045,-302.23594841,0.00013873,2]
[353196089,1739640669055,-500.0,0.00013873,2]
[353196090,1739640669064,-160.48778919,0.00013873,2]
[353196091,1739640669074,-161.55192144,0.00013873,2]
[353196092,1739640669085,-160.7262034,0.00013873,2]
[353196093,1739640669095,-500.0,0.00013873,2]
[353196094,1739640669105,-500.0,0.00013873,2]
[353196095,1739640669114,-500.0,0.00013879,2]
[353196096,1739640669123,-2823968.17230462,0.0001388,2]
[353196097,1739640669133,-151.0,0.0001388,2]
[353196098,1739640669146,-151.0,0.0001388,2]
[353196099,1739640669156,-151.0,0.0001388,2]
[353196100,1739640669167,-677.436189,0.0001388,2]
[353196101,1739640669176,-677.436189,0.0001388,2]
[353196102,1739640669186,-151.0,0.0001388,2]
[353196103,1739640669197,-151.0,0.0001388,2]
[353196104,1739640669208,-151.0,0.0001388,2]
[353196105,1739640669218,-248.474641,0.0001388,2]
[353196106,1739640669229,-248.474641,0.0001388,2]
[353196107,1739640669239,-151.0,0.0001388,2]
[353196108,1739640669248,-151.0,0.0001388,2]
[353196109,1739640669258,-151.0,0.0001388,2]
[353196110,1739640669269,-151.0,0.0001388,2]
[353196111,1739640669279,-151.0,0.0001388,2]
[353196112,1739640669289,-151.0,0.0001388,2]
[353196113,1739640669299,-151.0,0.0001388,2]
[353196114,1739640669310,-151.0,0.0001388,2]
[353196115,1739640669320,-151.0,0.0001388,2]
[353196116,1739640669329,-151.0,0.0001388,2]
[353196117,1739640669339,-214.187081,0.0001388,2]
[353196118,1739640669350,-214.187081,0.0001388,2]
[353196119,1739640669359,-257.353394,0.0001388,2]
[353196120,1739640669370,-257.353394,0.0001388,2]
[353196121,1739640669380,-151.0,0.0001388,2]
[353196122,1739640669391,-151.607486,0.0001388,2]
[353196123,1739640669400,-151.0,0.0001388,2]
[353196124,1739640669411,-151.0,0.0001388,2]
[353196125,1739640669421,-572.149505,0.0001388,2]
[353196126,1739640669432,-572.149505,0.0001388,2]
[353196127,1739640669442,-151.0,0.0001388,2]
[353196128,1739640669452,-151.0,0.0001388,2]
[353196129,1739640669462,-204.4037,0.0001388,2]
[353196130,1739640669473,-204.4037,0.0001388,2]
[353196131,1739640669483,-216.0,0.0001394,2]
[353196132,1739640669493,-204.0,0.0001394,2]
[353196133,1739640669503,-207.0,0.0001394,2]
[353196134,1739640669512,-150.0,0.00013942,2]
[353196135,1739640669523,-497.0869889,0.0001399,2]
[353196136,1739640669534,-461.18,0.0001399,2]
[353196137,1739640669543,-9997.81071292,0.00013995,4]
[353196138,1739640669552,-572.1770488,0.00014,4]
[353196139,1739640669563,-288940.0,0.00014,2]
[353196140,1739640669573,-1000.0,0.00014,2]
[353196141,1739640669584,-151.0,0.00014,2]
[353196142,1739640669594,-151.0,0.00014,2]
[353196143,1739640669604,-151.0,0.00014,2]
[353196144,1739640669613,-151.0,0.00014,2]
[353196145,1739640669624,-677.436189,0.00014,2]
[353196146,1739640669634,-677.436189,0.00014,2]
[353196147,1739640669644,-151.0,0.00014,2]
[353196148,1739640669653,-151.0,0.00014,2]
[353196149,1739640669663,-248.474641,0.00014,2]
[353196150,1739640669673,-248.474641,0.00014,2]
[353196151,1739640669683,-151.0,0.00014,2]
[353196152,1739640669692,-230.425858,0.00014,2]
[353196153,1739640669702,-151.0,0.00014,2]
[353196154,1739640669712,-151.0,0.00014,2]
[353196155,1739640669722,-151.0,0.00014,2]
[353196156,1739640669732,-151.0,0.00014,2]
[353196157,1739640669742,-151.0,0.00014,2]
[353196158,1739640669753,-214.187081,0.00014,2]
[353196159,1739640669763,-214.187081,0.00014,2]
[353196160,1739640669773,-257.353394,0.00014,2]
[353196161,1739640669783,-257.353394,0.00014,2]
[353196162,1739640669794,-151.0,0.00014,2]
[353196163,1739640669804,-151.0,0.00014,2]
[353196164,1739640669814,-151.0,0.00014,2]
[353196165,1739640669825,-572.149505,0.00014,2]
[353196166,1739640669836,-572.149505,0.00014,2]
[353196167,1739640669846,-151.0,0.00014,2]
[353196168,1739640669856,-151.0,0.00014,2]
[353196169,1739640669867,-204.4037,0.00014,2]
[353196170,1739640669876,-204.4037,0.00014,2]
[353196171,1739640669887,-703778.0,0.00014,2]
[353196172,1739640669896,-880.8631838,0.00014,7]
[353196173,1739640669906,-700.0,0.00014,3]
[353196174,1739640669917,-499.83069645,0.00014,2]
[353196175,1739640669927,-466.51,0.00014016,2]
[353196176,1739640669937,-267.97347442,0.00014049,2]
[353196177,1739640669947,-1081.57,0.00014058,2]
[353196178,1739640669956,-269.46424909,0.0001409,2]
[353196179,1739640669966,-5000.0,0.00014118,2]
[353196180,1739640669976,-5000.0,0.00014118,2]
[353196181,1739640669986,-5000.0,0.00014118,2]
[353196182,1739640669997,-5000.0,0.00014118,2]
[353196183,1739640670007,-474.68,0.0001415,2]
[353196184,1739640670018,-8500.0,0.00014191,2]
[353196185,1739640670027,-7527.60846726,0.00014191,2]
[353196186,1739640670037,-1108.81476773,0.00014191,2]
[353196187,1739640670047,-150.0,0.00014219,2]
[353196188,1739640670057,-5004.91016,0.0001425,2]
[353196189,1739640670067,-794.57,0.000143,2]
[353196190,1739640670217,-1000.0,0.00014328,2]
[353196191,1739640670247,-2063.17607,0.0001433,2]
[353196192,1739640670257,-5800.0,0.00014347,2]
[353196193,1739640670267,-5800.0,0.00014356,2]
[353196194,1739640670276,-4699.13689346,0.00014356,2]
[353196195,1739640670286,-5800.0,0.00014356,2]
[353196196,1739640670295,-157.98,0.00014361,2]
[353196197,1739640670304,-500.16313007,0.00014421,2]
[353196198,1739640670314,-1001.26090702,0.00014421,2]
[353196199,1739640670324,-1000.0,0.00014421,2]
[353196200,1739640670334,-500.1570549,0.00014421,2]
[353196201,1739640670344,-1000.0,0.00014421,2]
[353196202,1739640670354,-5978.76570879,0.000145,10]
[353196203,1739640670363,-5011.0,0.000145,3]
[353196204,1739640670373,-151.64810515,0.000145,2]
[353196205,1739640670382,-2880.42,0.0001452,3]
[353196206,1739640670392,-20640.0,0.000146,2]
[353196207,1739640670401,-1000.0,0.00014631,2]
[353196208,1739640670411,-154.9693069,0.0001479,2]
[353196209,1739640670420,-573.5619103,0.0001479,2]
[353196210,1739640670430,-2880.42,0.00014794,3]
[353196211,1739640670439,-151.758506,0.000148,2]
[353196212,1739640670448,-151.0,0.000148,2]
[353196213,1739640670457,-151.0,0.000148,2]
[353196214,1739640670467,-677.436189,0.000148,2]
[353196215,1739640670476,-677.436189,0.000148,2]
[353196216,1739640670486,-254.230638,0.000148,2]
[353196217,1739640670496,-151.0,0.000148,2]
[353196218,1739640670505,-248.474641,0.000148,2]
[353196219,1739640670515,-248.474641,0.000148,2]
[353196220,1739640670524,-151.0,0.000148,2]
[353196221,1739640670533,-151.0,0.000148,2]
[353196222,1739640670543,-151.0,0.000148,2]
[353196223,1739640670552,-172.331119,0.000148,2]
[353196224,1739640670561,-151.0,0.000148,2]
[353196225,1739640670570,-151.0,0.000148,2]
[353196226,1739640670579,-214.187081,0.000148,2]
[353196227,1739640670589,-214.187081,0.000148,2]
[353196228,1739640670599,-257.353394,0.000148,2]
[353196229,1739640670607,-257.353394,0.000148,2]
[353196230,1739640670617,-151.0,0.000148,2]
[353196231,1739640670628,-606855.520312,0.000148,3]
[353196232,1739640670638,-151.0,0.000148,2]
[353196233,1739640670648,-151.0,0.000148,2]